bitfinex/quotes_SOLUSD_20251124
["timestamp","ask_amount","ask_price","bid_price","bid_amount"]
[1763982326898,0.16806037,129.25,129.24,3.42]
[1763982328001,0.16806037,129.25,129.24,6.17680905]
[1763982328201,0.16806037,129.25,129.24,68.27680905]
[1763982329178,0.16806037,129.25,129.24,78.06563674]
[1763982330387,0.16806037,129.25,129.24,81.16677253]
[1763982330587,0.16806037,129.25,129.24,81.3089341]
[1763982330789,0.16806037,129.25,129.24,100.07371285]
[1763982330994,0.16806037,129.25,129.24,78.40996348]
[1763982331192,0.16806037,129.25,129.24,75.30882769]
[1763982331501,0.16806037,129.25,129.24,78.06563674]
[1763982331680,0.16806037,129.25,129.24,75.30882769]
[1763982333802,0.16806037,129.25,129.24,78.06563674]
[1763982339911,0.16806037,129.25,129.24,89.09287294]
[1763982340298,0.16806037,129.25,129.24,191.09287294]
[1763982340620,0.16806037,129.25,129.24,180.06563674]
[1763982341114,0.16806037,129.25,129.24,78.40996348]
[1763982341296,0.16806037,129.25,129.24,78.06563674]
[1763982346095,0.1686095,129.28,129.27,61.64045237]
[1763982346301,0.1686095,129.28,129.27,167.06045237]
[1763982346809,0.31124831,129.28,129.27,167.06045237]
[1763982348215,0.14263881,129.28,129.27,167.06045237]
[1763982349307,0.14263881,129.28,129.25,3.42]
[1763982354999,2.89944786,129.28,129.25,3.42]
[1763982355197,0.14263881,129.28,129.25,3.42]
[1763982357515,2.89944786,129.28,129.25,3.42]
[1763982360128,2.75680905,129.27,129.25,3.42]
[1763982360318,2.75680905,129.27,129.23,3.62]
[1763982361453,2.89944786,129.28,129.23,6.37680905]
[1763982361633,2.75680905,129.27,129.23,3.62]
[1763982361931,2.75680905,129.26,129.23,3.62]
[1763982362119,2.75680905,129.25,129.23,3.62]
[1763982362319,2.75680905,129.25,129.23,0.2]
[1763982362528,4.3214147,129.25,129.23,0.2]
[1763982362926,1.10953237,129.28,129.23,0.2]
[1763982363123,4.3214147,129.26,129.23,0.2]
[1763982363511,22.58501351,129.28,129.23,0.2]
[1763982363711,22.4423747,129.27,129.23,0.2]
[1763982363941,22.4423747,129.27,129.23,163.84045237]
[1763982364518,4.3214147,129.26,129.23,163.84045237]
[1763982365022,22.4423747,129.27,129.23,163.84045237]
[1763982365738,18.12096,129.27,129.23,168.16186707]
[1763982365943,18.12096,129.27,129.24,7.7414147]
[1763982366248,18.26359881,129.28,129.24,7.7414147]
[1763982366623,22.58501351,129.28,129.24,3.42]
[1763982366937,0.1649944,129.25,129.24,3.42]
[1763982369930,0.16379833,129.26,129.25,61.47545797]
[1763982372026,0.16379833,129.26,129.25,75.58570036]
[1763982372360,4.48521303,129.26,129.24,3.42]
[1763982372656,0.16379833,129.26,129.24,3.42]
[1763982374114,4.48521303,129.26,129.24,3.42]
[1763982374538,4.3214147,129.25,129.24,3.42]
[1763982375237,4.48521303,129.26,129.24,3.42]
[1763982381854,4.48521303,129.26,129.24,64.89545797]
[1763982383033,0.16379833,129.26,129.24,64.89545797]
[1763982385446,4.3214147,129.25,129.24,64.89545797]
[1763982385648,4.3214147,129.25,129.24,61.47545797]
[1763982386860,4.46732551,129.25,129.24,61.47545797]
[1763982389356,0.14591081,129.25,129.24,61.47545797]
[1763982389662,18.26687081,129.25,129.24,61.47545797]
[1763982390845,22.58828551,129.25,129.24,61.47545797]
[1763982393044,18.26687081,129.25,129.24,61.47545797]
[1763982393531,0.14591081,129.25,129.24,61.47545797]
[1763982393736,0.14591081,129.25,129.24,64.89545797]
[1763982394251,0.14591081,129.25,129.24,64.1102111]
[1763982394636,0.14591081,129.25,129.24,166.1102111]
[1763982395241,0.14591081,129.25,129.24,170.4316258]
[1763982395638,0.14591081,129.25,129.24,166.1102111]
[1763982395840,4.46732551,129.25,129.24,166.1102111]
[1763982396057,4.46732551,129.25,129.23,0.2]
[1763982396271,4.3214147,129.24,129.23,0.2]
[1763982397351,8.6428294,129.24,129.23,0.2]
[1763982397765,4.3214147,129.24,129.23,0.2]
[1763982398657,8.6428294,129.24,129.23,0.2]
[1763982398861,4.3214147,129.24,129.23,0.2]
[1763982402666,4.3214147,129.24,129.23,60.8902111]
[1763982402872,0.14591081,129.25,129.23,60.8902111]
[1763982403171,4.3214147,129.24,129.23,60.8902111]
[1763982405399,8.6428294,129.24,129.23,60.8902111]
[1763982405775,12.0628294,129.24,129.23,60.8902111]
[1763982406905,12.22013598,129.24,129.23,60.8902111]
[1763982407309,16.4099679,129.24,129.23,0.2]
[1763982407506,0.14216157,129.23,129.2,60.8902111]
[1763982407798,22.4423747,129.21,129.2,0.2]
[1763982407996,25.8623747,129.21,129.2,0.2]
[1763982408203,25.8623747,129.21,129.19,0.2]
[1763982408376,4.46357627,129.2,129.19,0.2]
[1763982408576,22.4423747,129.2,129.19,0.2]
[1763982411295,4.3214147,129.2,129.19,0.2]
[1763982414484,4.3214147,129.2,129.19,60.8902111]
[1763982417211,18.12096,129.2,129.19,162.8902111]
[1763982417401,4.20497693,129.24,129.2,42.5692511]
[1763982417580,4.3214147,129.21,129.2,142.3692511]
[1763982419791,22.4423747,129.21,129.2,142.3692511]
[1763982420889,18.12096,129.23,129.2,62.8116258]
[1763982421094,4.3214147,129.22,129.2,62.8116258]
[1763982421528,4.3214147,129.23,129.2,62.8116258]
[1763982421711,4.3214147,129.22,129.2,62.8116258]
[1763982421910,4.3214147,129.21,129.2,62.8116258]
[1763982422115,4.3214147,129.22,129.2,62.8116258]
[1763982423294,4.3214147,129.23,129.2,62.8116258]
[1763982424097,8.52639163,129.24,129.2,62.8116258]
[1763982424592,2.76619392,129.23,129.2,62.8116258]
[1763982425001,6.97117085,129.24,129.21,3.42]
[1763982425196,2.76619392,129.23,129.21,3.42]
[1763982425618,2.76619392,129.22,129.2,62.8116258]
[1763982426413,2.76619392,129.21,129.2,164.8116258]
[1763982426602,2.76619392,129.21,129.2,62.8116258]
[1763982427016,2.9195671,129.21,129.2,62.8116258]
[1763982428289,21.0405271,129.21,129.19,0.2]
[1763982428506,20.88715392,129.2,129.19,0.2]
[1763982430215,2.76619392,129.2,129.19,0.2]
[1763982432407,20.88715392,129.2,129.19,0.2]
[1763982434311,2.76619392,129.2,129.19,0.2]
[1763982435825,2.76619392,129.2,129.19,3.70378273]
[1763982436230,21.0405271,129.21,129.19,3.70378273]
[1763982436909,21.0405271,129.21,129.19,44.07303383]
[1763982437542,2.76619392,129.2,129.19,44.07303383]
[1763982437701,18.27433318,129.21,129.19,44.07303383]
[1763982437903,21.0405271,129.21,129.19,44.07303383]
[1763982438736,0.15337318,129.21,129.19,40.5692511]
[1763982438923,0.15337318,129.21,129.2,21.0405271]
[1763982439120,2.9195671,129.21,129.2,21.0405271]
[1763982444135,2.9195671,129.21,129.2,61.4097782]
[1763982445564,2.9195671,129.21,129.19,0.2]
[1763982445565,18.26312157,129.2,129.19,0.2]
[1763982445716,32.09409117,129.2,129.19,0.2]
[1763982446033,21.02931549,129.2,129.19,0.2]
[1763982446910,21.17789754,129.2,129.19,0.2]
[1763982448313,18.26954205,129.2,129.19,0.2]
[1763982448512,21.03573597,129.2,129.19,0.2]
[1763982451049,21.17789754,129.2,129.19,0.2]
[1763982451260,21.03573597,129.2,129.19,0.2]
[1763982461872,2.91477597,129.2,129.19,40.5692511]
[1763982462170,2.91477597,129.2,129.19,61.60498707]
[1763982464280,2.91477597,129.2,129.19,40.5692511]
[1763982464443,2.91477597,129.2,129.19,62.88642831]
[1763982466168,0.14858205,129.2,129.19,62.88642831]
[1763982466967,0.29628419,129.2,129.19,62.88642831]
[1763982467976,0.14770214,129.2,129.19,62.88642831]
[1763982469257,0.14770214,129.2,129.19,69.07262223]
[1763982469776,0.14770214,129.2,129.19,66.30642831]
[1763982470152,0.14770214,129.2,129.19,76.095256]
[1763982470465,0.14770214,129.2,129.19,78.86144992]
[1763982472775,0.14770214,129.2,129.19,76.095256]
[1763982473861,0.14770214,129.2,129.19,178.095256]
[1763982474076,0.14770214,129.2,129.19,180.86144992]
[1763982474956,0.16590642,129.21,129.2,50.01037665]
[1763982475177,0.16590642,129.21,129.2,52.77657057]
[1763982478582,0.16590642,129.21,129.2,50.01037665]
[1763982478781,0.16590642,129.21,129.2,52.77657057]
[1763982479749,0.16590642,129.21,129.2,154.77657057]
[1763982480355,0.16590642,129.21,129.2,157.87866836]
[1763982480952,0.14193269,129.25,129.24,39.50466353]
[1763982481184,0.14193269,129.25,129.24,144.92466353]
[1763982481787,0.14193269,129.25,129.24,148.02676132]
[1763982482083,2.90812661,129.25,129.24,144.60676132]
[1763982482253,2.90812661,129.25,129.24,141.50466353]
[1763982482450,0.14193269,129.25,129.24,141.50466353]
[1763982482651,2.90812661,129.25,129.24,141.50466353]
[1763982482880,2.90812661,129.25,129.24,38.90466353]
[1763982485562,2.90812661,129.25,129.23,38.90466353]
[1763982485885,2.76619392,129.24,129.23,38.90466353]
[1763982486618,4.32160764,129.24,129.23,38.90466353]
[1763982487079,22.58645926,129.24,129.23,38.90466353]
[1763982488082,4.46549926,129.24,129.23,38.90466353]
[1763982493072,8.7871069,129.24,129.23,38.90466353]
[1763982493268,4.46549926,129.24,129.23,38.90466353]
[1763982495068,8.7871069,129.24,129.23,38.90466353]
[1763982495282,8.7871069,129.24,129.2,38.90466353]
[1763982495485,4.32160764,129.21,129.2,38.90466353]
[1763982498693,22.44256764,129.21,129.2,38.90466353]
[1763982500575,22.44256764,129.21,129.19,0.2]
[1763982500576,4.46376921,129.21,129.19,0.2]
[1763982500873,4.32160764,129.2,129.19,0.2]
[1763982502087,8.78537685,129.2,129.19,0.2]
[1763982502290,26.90633685,129.2,129.19,0.2]
[1763982502466,22.58472921,129.2,129.19,0.2]
[1763982503070,26.00472921,129.2,129.19,0.2]
[1763982503503,30.32633685,129.2,129.19,0.2]
[1763982504374,42.11516453,129.2,129.19,0.2]
[1763982504571,28.05194926,129.18,129.17,0.2]
[1763982504799,0.14216157,129.17,129.15,0.2]
[1763982505097,0.14216157,129.15,129.07,7.14505521]
[1763982505296,26.90633685,129.15,129.07,7.14505521]
[1763982505511,26.90633685,129.12,129.06,0.2]
[1763982505702,17.37922088,129.12,129.06,0.2]
[1763982505887,12.20537685,129.12,129.06,0.2]
[1763982506093,40.11516454,129.12,129.06,0.2]
[1763982506306,21.99420454,129.12,129.06,0.2]
[1763982506822,18.12096,129.11,129.06,0.2]
[1763982506990,22.44256764,129.11,129.06,0.2]
[1763982507290,22.58472921,129.11,129.06,0.2]
[1763982507498,4.32160764,129.07,129.06,0.2]
[1763982508309,26.90633685,129.07,129.06,0.2]
[1763982509142,22.58472921,129.07,129.06,0.2]
[1763982509495,26.90633685,129.07,129.06,0.2]
[1763982510198,18.12096,129.04,129.01,38.93934909]
[1763982510492,22.44256764,129.03,129.01,38.93934909]
[1763982510913,18.12096,129.03,129.01,38.93934909]
[1763982511130,21.68312157,129.08,129.01,43.26095673]
[1763982511303,4.32160764,129.05,129.01,204.46095673]
[1763982511501,4.32160764,129.05,129.01,200.13934909]
[1763982513022,4.32160764,129.02,129.01,200.13934909]
[1763982513202,4.32160764,129.03,129.01,98.13934909]
[1763982514710,4.32160764,129.02,129.01,38.93934909]
[1763982515301,4.32160764,129.03,129.01,38.93934909]
[1763982515497,0.14216157,129.05,129.01,38.93934909]
[1763982515709,4.32160764,129.03,129.01,38.93934909]
[1763982515907,4.46376921,129.06,129.01,38.93934909]
[1763982516108,4.32160764,129.03,129.01,38.93934909]
[1763982516308,22.44256764,129.04,129.01,38.93934909]
[1763982516713,18.12096,129.04,129.01,38.93934909]
[1763982516905,4.32160764,129.06,129.01,43.26095673]
[1763982517107,4.32160764,129.05,129.01,38.93934909]
[1763982518202,4.32160764,129.09,129.04,4.32160764]
[1763982518401,4.32160764,129.1,129.05,4.32160764]
[1763982518596,18.12096,129.08,129.05,4.32160764]
[1763982518800,18.12096,129.08,129.06,4.32160764]
[1763982518996,4.32160764,129.1,129.06,4.32160764]
[1763982518997,4.32160764,129.09,129.06,4.32160764]
[1763982520324,22.44256764,129.1,129.06,4.32160764]
[1763982520531,18.12096,129.1,129.06,8.64321528]
[1763982520833,22.44256764,129.1,129.06,4.32160764]
[1763982521615,4.32160764,129.1,129.06,4.32160764]
[1763982521819,22.44256764,129.1,129.06,4.32160764]
[1763982522031,4.32160764,129.09,129.06,4.32160764]
[1763982523120,18.12096,129.1,129.06,4.32160764]
[1763982523320,4.32160764,129.07,129.06,4.32160764]
[1763982523503,4.32160764,129.08,129.03,4.32160764]
[1763982523704,4.32160764,129.08,129.04,4.32160764]
[1763982524229,4.32160764,129.09,129.05,4.32160764]
[1763982524404,4.32160764,129.09,129.05,22.44256764]
[1763982525006,22.44256764,129.1,129.05,22.44256764]
[1763982525944,4.32160764,129.09,129.05,22.44256764]
[1763982526312,18.12096,129.1,129.05,22.44256764]
[1763982526515,22.44256764,129.1,129.05,4.32160764]
[1763982526732,22.44256764,129.1,129.05,22.44256764]
[1763982526928,0.1441356,129.06,129.05,22.44256764]
[1763982527121,0.14563746,129.07,129.06,59.0558644]
[1763982527326,0.14563746,129.07,129.06,63.37747204]
[1763982527733,0.14563746,129.07,129.06,65.58181618]
[1763982528341,0.14563746,129.07,129.06,69.90342382]
[1763982528637,0.14563746,129.07,129.06,65.58181618]
[1763982528946,0.14563746,129.07,129.06,181.69225151]
[1763982529147,0.14563746,129.07,129.06,167.58181618]
[1763982530139,0.14563746,129.07,129.06,164.4758644]
[1763982532145,0.14563746,129.07,129.06,161.0558644]
[1763982532628,0.14563746,129.07,129.06,58.9558644]
[1763982536037,0.14563746,129.07,129.06,165.27747204]
[1763982537137,0.14563746,129.07,129.06,160.9558644]
[1763982537444,0.14563746,129.07,129.06,165.27747204]
[1763982537855,0.14563746,129.07,129.06,168.38342382]
[1763982538566,0.15951364,129.08,129.07,68.59905463]
[1763982538861,0.15951364,129.08,129.07,72.92066227]
[1763982539422,0.15951364,129.08,129.07,76.02613177]
[1763982540937,0.15951364,129.08,129.07,69.65730408]
[1763982541335,0.15951364,129.08,129.07,79.44613177]
[1763982542150,0.15951364,129.08,129.07,181.44613177]
[1763982543653,0.16142019,129.12,129.11,58.0874525]
[1763982543856,0.16142019,129.12,129.11,159.5874525]
[1763982546447,0.16142019,129.12,129.11,164.07715066]
[1763982546959,0.31499208,129.12,129.11,164.07715066]
[1763982548039,0.15357189,129.12,129.11,164.07715066]
[1763982549566,0.15357189,129.12,129.11,159.5874525]
[1763982551936,0.15357189,129.12,129.11,177.87332582]
[1763982553570,0.15357189,129.12,129.11,180.64381292]
[1763982553773,2.92405899,129.12,129.08,3.42]
[1763982554060,2.7704871,129.11,129.08,6.52571062]
[1763982554759,2.7704871,129.11,129.08,3.42]
[1763982555068,2.92405899,129.12,129.08,6.52571062]
[1763982558171,2.7704871,129.11,129.08,6.52571062]
[1763982558374,2.7704871,129.11,129.08,3.10571062]
[1763982558576,2.92405899,129.12,129.09,3.42]
[1763982560091,0.15357189,129.12,129.1,2.7704871]
[1763982560270,0.15357189,129.12,129.11,15.97931479]
[1763982560475,0.15357189,129.12,129.11,71.70882769]
[1763982560778,0.15357189,129.12,129.11,74.47931479]
[1763982560978,0.15357189,129.12,129.11,77.5838202]
[1763982561477,0.16491332,129.13,129.12,9.93098926]
[1763982561770,0.16491332,129.13,129.12,23.78342476]
[1763982563175,0.16491332,129.13,129.12,192.02815834]
[1763982564063,0.16491332,129.13,129.12,184.28342476]
[1763982564978,0.16491332,129.13,129.12,170.28882769]
[1763982565193,0.16491332,129.13,129.12,176.47931479]
[1763982565560,0.16491332,129.13,129.12,194.60027479]
[1763982565877,0.16491332,129.13,129.12,197.70429838]
[1763982566484,0.16491332,129.13,129.12,216.67314193]
[1763982567004,0.33304527,129.13,129.12,216.67314193]
[1763982568068,0.16813195,129.13,129.12,208.92840835]
[1763982568696,0.16813195,129.13,129.12,216.67314193]
[1763982568999,0.15450962,129.17,129.16,57.85132173]
[1763982569225,0.15450962,129.17,129.16,162.77132173]
[1763982569369,0.15450962,129.17,129.12,49.98261863]
[1763982569370,2.92499672,129.17,129.12,57.35132173]
[1763982569570,2.7704871,129.15,129.13,3.10450541]
[1763982569878,2.7704871,129.15,129.12,60.77132173]
[1763982570073,2.7704871,129.15,129.12,84.05691958]
[1763982571103,2.7704871,129.14,129.12,26.70559785]
[1763982571304,2.7704871,129.13,129.03,1.99999999]
[1763982571490,2.7704871,129.12,129.09,12.20487577]
[1763982572299,2.7704871,129.13,129.09,12.20487577]
[1763982572607,2.7704871,129.14,129.09,14.97536287]
[1763982572898,2.7704871,129.14,129.1,3.42]
[1763982573610,2.7704871,129.13,129.1,3.42]
[1763982574682,2.7704871,129.14,129.1,3.42]
[1763982574876,2.7704871,129.16,129.11,2.7704871]
[1763982575085,2.92499672,129.17,129.12,2.7704871]
[1763982575387,2.92499672,129.17,129.13,3.42]
[1763982575586,2.7704871,129.16,129.13,3.42]
[1763982576312,2.7704871,129.16,129.13,60.77132173]
[1763982581633,2.7704871,129.16,129.13,63.87582714]
[1763982584627,2.7704871,129.16,129.13,60.45582714]
[1763982584921,2.7704871,129.15,129.13,60.77132173]
[1763982585328,2.7704871,129.14,129.13,60.77132173]
[1763982585699,2.7704871,129.15,129.13,60.77132173]
[1763982587021,0.16864742,129.14,129.13,60.77132173]
[1763982587325,2.93913452,129.14,129.1,57.35132173]
[1763982587500,2.7704871,129.13,129.1,60.77132173]
[1763982587696,2.7704871,129.13,129.1,63.87655015]
[1763982587925,2.7704871,129.13,129.1,60.77132173]
[1763982588735,2.7704871,129.13,129.1,63.87655015]
[1763982590026,2.7704871,129.12,129.1,3.10522842]
[1763982590227,2.7704871,129.12,129.09,3.42]
[1763982590519,2.93913452,129.14,129.09,6.1904871]
[1763982590914,2.93913452,129.14,129.09,17.2724355]
[1763982591530,2.93913452,129.14,129.09,14.5019484]
[1763982591826,2.93913452,129.14,129.09,6.1904871]
[1763982592018,6.98959568,129.14,129.09,6.1904871]
[1763982592231,2.7704871,129.13,129.09,3.42]
[1763982592528,2.7704871,129.12,129.09,3.42]
[1763982593109,2.7704871,129.13,129.09,3.42]
[1763982594434,22.34006858,129.14,129.09,3.42]
[1763982594625,2.7704871,129.13,129.09,3.42]
[1763982595230,2.7704871,129.13,129.08,21.17712015]
[1763982595440,2.7704871,129.13,129.09,3.42]
[1763982595618,2.7704871,129.13,129.09,162.77132173]
[1763982597202,2.7704871,129.12,129.09,162.77132173]
[1763982597405,2.7704871,129.13,129.09,162.77132173]
[1763982598030,2.7704871,129.12,129.09,159.35132173]
[1763982598234,2.7704871,129.11,129.09,159.35132173]
[1763982599309,2.7704871,129.12,129.09,159.35132173]
[1763982600141,22.34006858,129.14,129.09,159.35132173]
[1763982600142,2.7704871,129.1,129.09,159.35132173]
[1763982600309,2.7704871,129.1,129.09,57.35132173]
[1763982601815,0.96801672,129.13,129.09,57.35132173]
[1763982602237,2.7704871,129.12,129.09,57.35132173]
[1763982602439,22.34006858,129.14,129.09,57.35132173]
[1763982602639,2.7704871,129.13,129.09,57.35132173]
[1763982603333,22.34006858,129.14,129.12,2.7704871]
[1763982603334,0.16864742,129.14,129.12,2.7704871]
[1763982603519,0.16864742,129.14,129.13,34.10027479]
[1763982604844,0.16864742,129.14,129.13,34.24243636]
[1763982605026,0.14208149,129.16,129.14,2.7704871]
[1763982605334,0.14208149,129.16,129.13,58.57641761]
[1763982605335,0.14208149,129.16,129.15,30.82243636]
[1763982605845,0.14208149,129.16,129.15,34.24243636]
[1763982606148,0.16276902,129.17,129.16,28.05194926]
[1763982606347,0.16276902,129.17,129.16,41.90438476]
[1763982606552,0.16276902,129.17,129.16,36.6942573]
[1763982607046,0.31853246,129.18,129.16,26.31563238]
[1763982607341,0.31853246,129.18,129.17,35.79310328]
[1763982607723,0.31853246,129.18,129.17,40.1142573]
[1763982608132,0.15176536,129.18,129.17,40.1142573]
[1763982608529,0.15176536,129.18,129.17,38.7540021]
[1763982612452,0.15176536,129.18,129.17,50.81689181]
[1763982613145,0.15176536,129.18,129.17,50.95905338]
[1763982613724,0.14821052,129.19,129.17,50.95905338]
[1763982613936,0.14821052,129.19,129.18,18.43113573]
[1763982615223,0.14821052,129.19,129.18,26.17227212]
[1763982615825,0.14821052,129.19,129.18,35.3330395]
[1763982616049,0.14821052,129.19,129.18,38.7530395]
[1763982616350,0.14821052,129.19,129.18,20.6320795]
[1763982616551,0.14821052,129.19,129.18,6.52209779]
[1763982616729,0.14821052,129.19,129.18,3.42]
[1763982617125,0.14821052,129.19,129.15,57.35132173]
[1763982617327,0.14821052,129.19,129.16,3.42]
[1763982619143,0.14821052,129.19,129.16,60.77132173]
[1763982620146,4.32115402,129.18,129.16,57.35132173]
[1763982620326,4.32115402,129.18,129.16,60.77132173]
[1763982621246,4.32115402,129.18,129.16,3.42]
[1763982621431,4.32115402,129.17,129.16,3.42]
[1763982621630,4.32115402,129.17,129.15,3.42]
[1763982621830,4.32115402,129.16,129.08,9.78882769]
[1763982622056,4.32115402,129.16,129.07,33.03760068]
[1763982622057,4.32115402,129.15,129.11,14.10998171]
[1763982622261,4.32115402,129.15,129.12,3.42]
[1763982623333,4.32115402,129.16,129.12,3.42]
[1763982624555,4.32115402,129.15,129.12,21.54096]
[1763982625139,4.32115402,129.15,129.12,3.42]
[1763982625338,4.32115402,129.13,129.1,14.10998171]
[1763982625541,18.12096,129.15,129.09,4.32115402]
[1763982625856,22.44211402,129.15,129.09,32.5213138]
[1763982626330,4.32115402,129.14,129.09,14.10998171]
[1763982627053,0.16628425,129.1,129.09,14.10998171]
[1763982630856,0.16628425,129.1,129.09,14.25214328]
[1763982631050,0.16628425,129.1,129.09,14.10998171]
[1763982631251,0.15924485,129.13,129.12,56.89520884]
[1763982631445,0.15924485,129.13,129.12,161.91520884]
[1763982633360,4.48039887,129.13,129.12,161.91520884]
[1763982634463,0.15924485,129.13,129.12,161.91520884]
[1763982634966,0.15924485,129.13,129.12,171.70403653]
[1763982635341,0.15924485,129.13,129.12,176.19002003]
[1763982635540,0.15924485,129.13,129.12,166.40119234]
[1763982636972,0.15924485,129.13,129.12,161.91520884]
[1763982637446,4.48039887,129.13,129.12,161.91520884]
[1763982638971,0.15924485,129.13,129.12,161.91520884]
[1763982639283,4.48039887,129.13,129.12,161.91520884]
[1763982639655,4.48039887,129.13,129.12,158.49520884]
[1763982639856,4.48039887,129.13,129.12,161.91520884]
[1763982640353,4.48039887,129.13,129.12,158.49520884]
[1763982640562,4.48039887,129.13,129.12,161.91520884]
[1763982642389,0.15924485,129.13,129.12,161.91520884]
[1763982642911,0.15924485,129.13,129.12,166.39560771]
[1763982646088,4.4859835,129.14,129.13,56.33596399]
[1763982646392,0.16482948,129.14,129.13,56.33596399]
[1763982646590,4.4859835,129.14,129.13,59.65596399]
[1763982646970,4.64415205,129.14,129.13,59.65596399]
[1763982647979,0.15816855,129.14,129.13,59.65596399]
[1763982648182,4.47932257,129.14,129.13,59.65596399]
[1763982649058,0.15816855,129.14,129.13,59.65596399]
[1763982649263,4.47932257,129.14,129.13,59.65596399]
[1763982652086,4.47932257,129.14,129.13,161.65596399]
[1763982653507,0.15816855,129.14,129.13,161.65596399]
[1763982660592,0.15816855,129.14,129.13,91.8869057]
[1763982660990,0.15816855,129.14,129.13,92.0503253]
[1763982661294,0.15816855,129.14,129.13,96.37147932]
[1763982661901,0.15816855,129.14,129.13,96.51364089]
[1763982662102,0.1634196,129.15,129.14,66.0087847]
[1763982662315,0.1634196,129.15,129.14,70.32993872]
[1763982662512,0.1634196,129.15,129.14,78.07347286]
[1763982663486,0.1634196,129.15,129.14,203.36347286]
[1763982666093,0.1634196,129.15,129.14,168.0087847]
[1763982666294,0.1634196,129.15,129.14,175.74993872]
[1763982666591,0.1634196,129.15,129.14,174.19649949]
[1763982666896,3.01223515,129.2,129.18,55.362038]
[1763982667095,3.0658456,129.19,129.18,156.862038]
[1763982667405,0.29813081,129.19,129.18,58.282038]
[1763982667601,3.0658456,129.19,129.18,58.282038]
[1763982667926,3.0658456,129.19,129.18,54.862038]
[1763982668139,2.91205317,129.19,129.18,54.862038]
[1763982669190,2.91205317,129.19,129.17,3.42]
[1763982670939,2.76771479,129.18,129.11,9.78882769]
[1763982671238,2.76771479,129.15,129.13,3.10450541]
[1763982671523,2.76771479,129.15,129.14,3.42]
[1763982671690,18.26529838,129.19,129.14,3.42]
[1763982671691,2.76771479,129.16,129.14,3.42]
[1763982672906,18.26529838,129.19,129.14,3.42]
[1763982673115,2.76771479,129.16,129.14,3.42]
[1763982673310,2.76771479,129.15,129.13,3.42]
[1763982673596,2.76771479,129.14,129.13,3.42]
[1763982674213,2.76771479,129.14,129.09,2.76771479]
[1763982674214,2.76771479,129.14,129.12,3.42]
[1763982674422,2.76771479,129.13,129.1,18.12096]
[1763982674627,2.76771479,129.13,129.11,3.42]
[1763982674814,2.76771479,129.14,129.11,3.42]
[1763982675635,2.76771479,129.13,129.11,3.42]
[1763982676011,2.76771479,129.13,129.11,33.22]
[1763982677742,2.76771479,129.12,129.11,33.22]
[1763982677934,2.76771479,129.12,129.11,29.8]
[1763982680009,2.76771479,129.12,129.1,3.42]
[1763982680241,2.76771479,129.11,129.1,3.42]
[1763982683335,2.76771479,129.12,129.1,3.42]
[1763982683542,2.76771479,129.13,129.1,3.42]
[1763982684643,2.76771479,129.12,129.1,3.42]
[1763982684815,2.76771479,129.12,129.1,33.22]
[1763982687137,0.15858107,129.11,129.1,33.22]
[1763982689118,0.15858107,129.11,129.1,36.32522842]
[1763982689553,0.15858107,129.11,129.1,39.09294321]
[1763982690536,0.15858107,129.11,129.1,48.8817709]
[1763982693648,0.14580186,129.12,129.11,39.43024662]
[1763982693834,0.14580186,129.12,129.11,42.19796141]
[1763982694123,0.14580186,129.12,129.11,144.24012298]
[1763982694549,0.14580186,129.12,129.11,151.98545641]
[1763982694946,0.14580186,129.12,129.11,144.24012298]
[1763982695126,0.14580186,129.12,129.11,151.98545641]
[1763982696132,0.14580186,129.12,129.11,144.24012298]
[1763982698546,0.14580186,129.12,129.11,147.66012298]
[1763982698929,0.14580186,129.12,129.11,155.40545641]
[1763982699624,18.27106541,129.19,129.16,28.7602071]
[1763982699835,18.27106541,129.19,129.16,31.4802071]
[1763982701130,6.98564868,129.17,129.16,31.4802071]
[1763982701441,6.98564868,129.17,129.16,28.0602071]
[1763982701846,6.98564868,129.17,129.15,3.42]
[1763982701847,18.12096,129.16,129.15,28.0602071]
[1763982702044,18.12096,129.15,129.13,3.42]
[1763982702230,2.76771479,129.14,129.13,31.4802071]
[1763982703759,18.12096,129.15,129.13,31.4802071]
[1763982703962,2.76771479,129.16,129.13,31.4802071]
[1763982704163,20.88867479,129.16,129.13,49.6011671]
[1763982704463,2.76771479,129.15,129.13,31.4802071]
[1763982706636,20.88867479,129.16,129.13,31.4802071]
[1763982707054,0.159616,129.14,129.13,28.0602071]
[1763982707245,0.159616,129.14,129.13,31.4802071]
[1763982709858,0.159616,129.14,129.13,28.0602071]
[1763982710035,0.159616,129.14,129.13,31.4802071]
[1763982710859,0.159616,129.14,129.13,28.0602071]
[1763982711034,0.159616,129.14,129.13,31.4802071]
[1763982715387,2.92733079,129.14,129.13,28.0602071]
[1763982715586,2.92733079,129.14,129.11,18.27593382]
[1763982715587,21.04829079,129.14,129.11,28.0602071]